[Event "*** SCC Grand Prix: Titled Tuesday Blitz"]
[Site "Chess.com"]
[Date "2020.08.25"]
[Round "5"]
[White "LubovMarkelova"]
[Black "salimalamri2020"]
[Result "0-1"]
[WhiteElo "2212"]
[BlackElo "2044"]
[TimeControl "180+1"]
[EndTime "10:57:53 PDT"]
[Termination "salimalamri2020 won by resignation"]

1. d4 {[%clk 0:03:00.9]} 1... d6 {[%clk 0:02:59.1]} 2. e4 {[%clk 0:02:58]} 2...
c6 {[%clk 0:02:59.5]} 3. g3 {[%clk 0:02:55.2]} 3... Qc7 {[%clk 0:03:00.1]} 4.
Bg2 {[%clk 0:02:55.3]} 4... Nf6 {[%clk 0:03:01]} 5. Ne2 {[%clk 0:02:52.2]} 5...
Nbd7 {[%clk 0:03:01.7]} 6. O-O {[%clk 0:02:52.5]} 6... e5 {[%clk 0:03:02.6]} 7.
c3 {[%clk 0:02:51.3]} 7... Be7 {[%clk 0:03:02.2]} 8. f4 {[%clk 0:02:51.7]} 8...
O-O {[%clk 0:02:59.9]} 9. f5 {[%clk 0:02:51.5]} 9... Ne8 {[%clk 0:02:48.8]} 10.
Be3 {[%clk 0:02:49.1]} 10... f6 {[%clk 0:02:47.9]} 11. Nd2 {[%clk 0:02:47.3]}
11... a6 {[%clk 0:02:42.2]} 12. g4 {[%clk 0:02:46.4]} 12... b6 {[%clk
0:02:40.4]} 13. h4 {[%clk 0:02:46.2]} 13... Bb7 {[%clk 0:02:39.8]} 14. Ng3
{[%clk 0:02:41.8]} 14... c5 {[%clk 0:02:38.7]} 15. d5 {[%clk 0:02:41.7]} 15...
b5 {[%clk 0:02:37.8]} 16. Nf3 {[%clk 0:02:41.9]} 16... c4 {[%clk 0:02:37.1]} 17.
g5 {[%clk 0:02:42.4]} 17... fxg5 {[%clk 0:02:36.1]} 18. hxg5 {[%clk 0:02:38.5]}
18... Kh8 {[%clk 0:02:35.6]} 19. g6 {[%clk 0:02:35.9]} 19... h6 {[%clk
0:02:34.5]} 20. Nh5 {[%clk 0:02:30.6]} 20... Ndf6 {[%clk 0:02:30.9]} 21. Nh2
{[%clk 0:02:27.6]} 21... Nxh5 {[%clk 0:02:13.1]} 22. Qxh5 {[%clk 0:02:27.2]}
22... Nf6 {[%clk 0:02:14]} 23. Qh3 {[%clk 0:02:26.9]} 23... Kg8 {[%clk
0:02:11.2]} 24. Ng4 {[%clk 0:02:23.3]} 24... Nxg4 {[%clk 0:02:09.1]} 25. Qxg4
{[%clk 0:02:23]} 25... a5 {[%clk 0:02:08.7]} 26. Qh5 {[%clk 0:02:20.8]} 26...
Bf6 {[%clk 0:02:01.6]} 27. Bf3 {[%clk 0:02:19.7]} 27... b4 {[%clk 0:02:00.1]}
28. Kg2 {[%clk 0:02:16.3]} 28... Ba6 {[%clk 0:01:55.5]} 29. Rh1 {[%clk
0:02:14.9]} 29... Rab8 {[%clk 0:01:54.5]} 30. Kg3 {[%clk 0:01:49]} 30... bxc3
{[%clk 0:01:44.6]} 31. bxc3 {[%clk 0:01:47.5]} 31... Rb2 {[%clk 0:01:45]} 32.
Rh3 {[%clk 0:01:46.7]} 32... Rc2 {[%clk 0:01:41.2]} 33. Rah1 {[%clk 0:01:41.7]}
33... Rxc3 {[%clk 0:01:39.4]} 34. Bxh6 {[%clk 0:01:40.4]} 34... gxh6 {[%clk
0:01:38.9]} 35. Qxh6 {[%clk 0:01:40.8]} 35... Qg7 {[%clk 0:01:39.1]} 36. Qd2
{[%clk 0:01:36.5]} 36... Rd3 {[%clk 0:01:38.3]} 37. Qxa5 {[%clk 0:01:36.1]}
37... Qa7 {[%clk 0:01:26.1]} 38. Qe1 {[%clk 0:00:50.8]} 38... c3 {[%clk
0:00:56.7]} 39. Rh7 {[%clk 0:00:13.7]} 39... Qd4 {[%clk 0:00:51.8]} 40. Rd7
{[%clk 0:00:08]} 40... c2 {[%clk 0:00:45.7]} 41. Rhh7 {[%clk 0:00:05.4]} 41...
Qc3 {[%clk 0:00:37.6]} 42. Qh1 {[%clk 0:00:03.5]} 42... Rxf3+ {[%clk 0:00:36.1]}
43. Qxf3 {[%clk 0:00:02.9]} 43... Qxf3+ {[%clk 0:00:35.9]} 44. Kxf3 {[%clk
0:00:03.6]} 44... c1=Q {[%clk 0:00:35.1]} 45. g7 {[%clk 0:00:04.3]} 45... Qf1+
{[%clk 0:00:33.8]} 46. Kg3 {[%clk 0:00:04]} 46... Qg1+ {[%clk 0:00:29.9]} 47.
Kf3 {[%clk 0:00:04.1]} 47... Bxg7 {[%clk 0:00:28.3]} 48. Rdxg7+ {[%clk
0:00:03.6]} 0-1

[Event "*** SCC Grand Prix: Titled Tuesday Blitz"]
[Site "Chess.com"]
[Date "2020.08.25"]
[Round "5"]
[White "BakaPG"]
[Black "colegiodemadrid"]
[Result "1/2-1/2"]
[WhiteElo "2680"]
[BlackElo "2434"]
[TimeControl "180+1"]
[EndTime "10:58:00 PDT"]
[Termination "Game drawn by repetition"]

1. e4 {[%clk 0:03:00.9]} 1... c6 {[%clk 0:02:55.9]} 2. d4 {[%clk 0:02:58.9]}
2... d5 {[%clk 0:02:55.5]} 3. e5 {[%clk 0:02:58.8]} 3... c5 {[%clk 0:02:55.1]}
4. dxc5 {[%clk 0:02:58.1]} 4... e6 {[%clk 0:02:52.3]} 5. Be3 {[%clk 0:02:48.4]}
5... Qc7 {[%clk 0:02:41.8]} 6. b4 {[%clk 0:02:38.4]} 6... Qxe5 {[%clk
0:02:37.5]} 7. Nd2 {[%clk 0:02:36.6]} 7... Qc7 {[%clk 0:02:35]} 8. Ngf3 {[%clk
0:02:33.5]} 8... a5 {[%clk 0:02:34.6]} 9. a3 {[%clk 0:02:25.8]} 9... Nf6 {[%clk
0:02:34.8]} 10. c4 {[%clk 0:02:11.5]} 10... Nc6 {[%clk 0:02:32.3]} 11. Qa4
{[%clk 0:02:01.2]} 11... Bd7 {[%clk 0:02:26.9]} 12. b5 {[%clk 0:02:00.8]} 12...
Ne5 {[%clk 0:02:21.6]} 13. Rc1 {[%clk 0:01:45.5]} 13... Nxf3+ {[%clk 0:01:59.3]}
14. Nxf3 {[%clk 0:01:44.7]} 14... Bxc5 {[%clk 0:01:55.4]} 15. cxd5 {[%clk
0:01:41.2]} 15... b6 {[%clk 0:01:54.6]} 16. dxe6 {[%clk 0:01:38.4]} 16... fxe6
{[%clk 0:01:51.9]} 17. Bxc5 {[%clk 0:01:32.6]} 17... bxc5 {[%clk 0:01:52.8]} 18.
Bc4 {[%clk 0:01:31.7]} 18... Kf8 {[%clk 0:01:51.6]} 19. O-O {[%clk 0:01:31.1]}
19... Re8 {[%clk 0:01:46.9]} 20. Rfe1 {[%clk 0:01:29.3]} 20... e5 {[%clk
0:01:45]} 21. Qc2 {[%clk 0:01:19.8]} 21... e4 {[%clk 0:01:39.2]} 22. Ng5 {[%clk
0:01:16.9]} 22... Re7 {[%clk 0:01:39.7]} 23. Nxe4 {[%clk 0:01:11.1]} 23... Bf5
{[%clk 0:01:39.6]} 24. f3 {[%clk 0:01:10]} 24... Bxe4 {[%clk 0:01:37.5]} 25.
fxe4 {[%clk 0:01:08]} 25... g6 {[%clk 0:01:38.4]} 26. Qc3 {[%clk 0:01:03.9]}
26... Qe5 {[%clk 0:01:35.5]} 27. Qxe5 {[%clk 0:00:59]} 27... Rxe5 {[%clk
0:01:36.4]} 28. Rcd1 {[%clk 0:00:56.1]} 28... Ke7 {[%clk 0:01:34.6]} 29. Be2
{[%clk 0:00:51.4]} 29... Nd7 {[%clk 0:01:32.1]} 30. Bf3 {[%clk 0:00:45.8]} 30...
Nb6 {[%clk 0:01:26.2]} 31. Rd3 {[%clk 0:00:41.5]} 31... c4 {[%clk 0:01:24]} 32.
Rd4 {[%clk 0:00:40.2]} 32... Rc8 {[%clk 0:01:22.4]} 33. Bg4 {[%clk 0:00:32.8]}
33... Rd8 {[%clk 0:01:13.4]} 34. Rxd8 {[%clk 0:00:28.7]} 34... Kxd8 {[%clk
0:01:14.3]} 35. Rb1 {[%clk 0:00:25.5]} 35... Rxe4 {[%clk 0:01:10.4]} 36. Bf3
{[%clk 0:00:24.3]} 36... Re3 {[%clk 0:01:06]} 37. a4 {[%clk 0:00:22.6]} 37...
Kc7 {[%clk 0:01:03.2]} 38. Kf2 {[%clk 0:00:22.7]} 38... Ra3 {[%clk 0:01:03.2]}
39. Re1 {[%clk 0:00:22.7]} 39... Kd6 {[%clk 0:00:56.6]} 40. Bg4 {[%clk
0:00:19.3]} 40... Rxa4 {[%clk 0:00:53.6]} 41. Re6+ {[%clk 0:00:16.5]} 41... Kc5
{[%clk 0:00:51]} 42. Re7 {[%clk 0:00:16.4]} 42... Ra2+ {[%clk 0:00:44.4]} 43.
Kg3 {[%clk 0:00:15.7]} 43... Kxb5 {[%clk 0:00:44.4]} 44. Rxh7 {[%clk 0:00:14.6]}
44... c3 {[%clk 0:00:43.9]} 45. Rc7 {[%clk 0:00:13.2]} 45... Nc4 {[%clk
0:00:41.5]} 46. Be6 {[%clk 0:00:11.1]} 46... Ra4 {[%clk 0:00:39.8]} 47. Bd7+
{[%clk 0:00:09.5]} 47... Kb4 {[%clk 0:00:37.2]} 48. Bxa4 {[%clk 0:00:08.6]}
48... Kxa4 {[%clk 0:00:37.1]} 49. Rxc4+ {[%clk 0:00:08]} 49... Kb3 {[%clk
0:00:37]} 50. Rc6 {[%clk 0:00:07.5]} 50... a4 {[%clk 0:00:37.1]} 51. Rxg6 {[%clk
0:00:06.4]} 51... a3 {[%clk 0:00:37.4]} 52. Rb6+ {[%clk 0:00:06.3]} 52... Kc2
{[%clk 0:00:36.9]} 53. h4 {[%clk 0:00:05.5]} 53... a2 {[%clk 0:00:36.6]} 54. Ra6
{[%clk 0:00:05.7]} 54... Kb1 {[%clk 0:00:37]} 55. Rb6+ {[%clk 0:00:04]} 55...
Kc2 {[%clk 0:00:36.1]} 56. Ra6 {[%clk 0:00:04.1]} 56... Kb1 {[%clk 0:00:31.6]}
57. Rb6+ {[%clk 0:00:04.1]} 57... Kc2 {[%clk 0:00:28.7]} 1/2-1/2

[Event "*** SCC Grand Prix: Titled Tuesday Blitz"]
[Site "Chess.com"]
[Date "2020.08.25"]
[Round "5"]
[White "rynos0411"]
[Black "BeanScreen"]
[Result "0-1"]
[WhiteElo "2436"]
[BlackElo "2691"]
[TimeControl "180+1"]
[EndTime "10:58:02 PDT"]
[Termination "BeanScreen won by resignation"]

1. e4 {[%clk 0:03:00.6]} 1... e5 {[%clk 0:02:59.8]} 2. Nf3 {[%clk 0:03:00.7]}
2... Nc6 {[%clk 0:03:00.2]} 3. Bb5 {[%clk 0:03:01.3]} 3... a6 {[%clk 0:03:00.6]}
4. Ba4 {[%clk 0:03:00.8]} 4... d6 {[%clk 0:03:01]} 5. O-O {[%clk 0:03:00.8]}
5... Nf6 {[%clk 0:03:01.4]} 6. Re1 {[%clk 0:03:00.8]} 6... Be7 {[%clk
0:03:01.8]} 7. c3 {[%clk 0:03:00.9]} 7... O-O {[%clk 0:03:02.1]} 8. h3 {[%clk
0:03:01]} 8... b5 {[%clk 0:03:02.1]} 9. Bb3 {[%clk 0:03:01.1]} 9... Na5 {[%clk
0:03:01.2]} 10. Bc2 {[%clk 0:03:01.3]} 10... c5 {[%clk 0:03:01.8]} 11. d4 {[%clk
0:03:01.9]} 11... Qc7 {[%clk 0:03:02.1]} 12. Nbd2 {[%clk 0:03:01.3]} 12... Nc6
{[%clk 0:02:52.9]} 13. Nf1 {[%clk 0:02:59.8]} 13... cxd4 {[%clk 0:02:52.5]} 14.
cxd4 {[%clk 0:02:59.6]} 14... exd4 {[%clk 0:02:52.3]} 15. Bf4 {[%clk 0:02:53.1]}
15... Bb7 {[%clk 0:02:42.7]} 16. Rc1 {[%clk 0:02:49.2]} 16... Qb6 {[%clk
0:02:36.5]} 17. Ng3 {[%clk 0:02:43.3]} 17... Nd7 {[%clk 0:02:29.7]} 18. Nf5
{[%clk 0:02:39.5]} 18... Bf6 {[%clk 0:02:30]} 19. Bxd6 {[%clk 0:02:38.4]} 19...
Rfe8 {[%clk 0:02:29.3]} 20. Bg3 {[%clk 0:02:19.6]} 20... Rad8 {[%clk 0:02:24.9]}
21. Bb3 {[%clk 0:02:14.2]} 21... Nc5 {[%clk 0:02:21.1]} 22. Bd5 {[%clk
0:02:10.4]} 22... d3 {[%clk 0:02:01.4]} 23. Qd2 {[%clk 0:02:00.1]} 23... b4
{[%clk 0:01:45.1]} 24. Ng5 {[%clk 0:01:45.5]} 24... Ne6 {[%clk 0:01:35]} 25.
Nxf7 {[%clk 0:01:21.2]} 25... Kxf7 {[%clk 0:01:30.6]} 26. Nd6+ {[%clk
0:01:20.3]} 26... Rxd6 {[%clk 0:01:26.5]} 27. Bxd6 {[%clk 0:01:21.2]} 27... Nd4
{[%clk 0:01:25.1]} 28. Bc5 {[%clk 0:01:11.7]} 28... Qb5 {[%clk 0:01:14.3]} 29.
Bxd4 {[%clk 0:01:06.9]} 29... Bxd4 {[%clk 0:00:57.5]} 30. Rc7+ {[%clk
0:01:01.6]} 30... Re7 {[%clk 0:00:57.7]} 31. Rec1 {[%clk 0:00:55.5]} 31... Bxd5
{[%clk 0:00:54.5]} 32. Rxe7+ {[%clk 0:00:54.8]} 32... Kxe7 {[%clk 0:00:55.3]}
33. exd5 {[%clk 0:00:55.2]} 33... Qxd5 {[%clk 0:00:55.4]} 34. Kf1 {[%clk
0:00:41.8]} 34... Bc5 {[%clk 0:00:52.5]} 35. Rd1 {[%clk 0:00:39.8]} 35... Qd4
{[%clk 0:00:50.5]} 36. b3 {[%clk 0:00:32.4]} 36... Nf4 {[%clk 0:00:49.9]} 37.
Rc1 {[%clk 0:00:24.9]} 37... Ne2 {[%clk 0:00:48]} 38. Rxc5 {[%clk 0:00:18.3]}
38... Qxc5 {[%clk 0:00:45.6]} 39. Qxd3 {[%clk 0:00:18.7]} 39... Nf4 {[%clk
0:00:44.6]} 40. Qe4+ {[%clk 0:00:12.9]} 40... Ne6 {[%clk 0:00:45.2]} 41. g3
{[%clk 0:00:12.6]} 41... g6 {[%clk 0:00:39.5]} 42. Qb7+ {[%clk 0:00:12.1]} 42...
Nc7 {[%clk 0:00:39.2]} 43. Qe4+ {[%clk 0:00:11.6]} 43... Kd6 {[%clk 0:00:37.8]}
44. Qf4+ {[%clk 0:00:11.1]} 44... Qe5 {[%clk 0:00:38]} 45. Qxb4+ {[%clk
0:00:11.1]} 45... Kc6 {[%clk 0:00:36.9]} 46. Kg2 {[%clk 0:00:08.6]} 46... Qd5+
{[%clk 0:00:35.8]} 47. Kg1 {[%clk 0:00:08.5]} 47... Ne6 {[%clk 0:00:35.1]} 48.
Qa4+ {[%clk 0:00:08.4]} 48... Kb7 {[%clk 0:00:32.6]} 49. Qe8 {[%clk 0:00:08.1]}
49... Nd4 {[%clk 0:00:31.3]} 50. Qe7+ {[%clk 0:00:08.4]} 50... Kc6 {[%clk
0:00:29]} 51. Qf6+ {[%clk 0:00:07.6]} 51... Kb5 {[%clk 0:00:25.6]} 52. Qf4
{[%clk 0:00:02.4]} 52... Ne2+ {[%clk 0:00:25.7]} 0-1

[Event "*** SCC Grand Prix: Titled Tuesday Blitz"]
[Site "Chess.com"]
[Date "2020.08.25"]
[Round "5"]
[White "MFBerna"]
[Black "Rodalquilar"]
[Result "0-1"]
[WhiteElo "2443"]
[BlackElo "2631"]
[TimeControl "180+1"]
[EndTime "10:58:02 PDT"]
[Termination "Rodalquilar won on time"]

1. e4 {[%clk 0:03:00.9]} 1... d5 {[%clk 0:03:00]} 2. exd5 {[%clk 0:03:00.3]}
2... Qxd5 {[%clk 0:03:00.9]} 3. Nc3 {[%clk 0:03:00.2]} 3... Qa5 {[%clk
0:03:01.1]} 4. d4 {[%clk 0:03:00.1]} 4... Nf6 {[%clk 0:03:01.5]} 5. Nf3 {[%clk
0:02:57.9]} 5... Bf5 {[%clk 0:03:01.5]} 6. Bd3 {[%clk 0:02:56.9]} 6... Nc6
{[%clk 0:02:56.6]} 7. O-O {[%clk 0:02:55.6]} 7... O-O-O {[%clk 0:02:54.5]} 8.
Be3 {[%clk 0:02:55.5]} 8... Bg4 {[%clk 0:02:44.7]} 9. h3 {[%clk 0:02:25.9]} 9...
Bh5 {[%clk 0:02:01.9]} 10. g4 {[%clk 0:02:20.7]} 10... Bg6 {[%clk 0:02:00.3]}
11. Qe2 {[%clk 0:02:10.9]} 11... Bxd3 {[%clk 0:01:56.2]} 12. Qxd3 {[%clk
0:02:11.8]} 12... e6 {[%clk 0:01:54.6]} 13. a3 {[%clk 0:02:04.5]} 13... Qa6
{[%clk 0:01:18.9]} 14. Qxa6 {[%clk 0:02:02.9]} 14... bxa6 {[%clk 0:01:19.8]} 15.
Rad1 {[%clk 0:01:53.8]} 15... h5 {[%clk 0:01:19.2]} 16. g5 {[%clk 0:01:52.1]}
16... Nd5 {[%clk 0:01:19.7]} 17. Ne4 {[%clk 0:01:41.7]} 17... a5 {[%clk
0:01:15.8]} 18. Bc1 {[%clk 0:01:25]} 18... a4 {[%clk 0:01:15.7]} 19. Rfe1 {[%clk
0:01:24.3]} 19... Be7 {[%clk 0:01:15.3]} 20. h4 {[%clk 0:01:06]} 20... Nb6
{[%clk 0:01:15.4]} 21. Rd3 {[%clk 0:00:47.1]} 21... Rd5 {[%clk 0:01:15]} 22. Nc3
{[%clk 0:00:42.1]} 22... Rf5 {[%clk 0:01:13.4]} 23. Kg2 {[%clk 0:00:37.1]} 23...
Rd8 {[%clk 0:01:11.8]} 24. g6 {[%clk 0:00:33.6]} 24... fxg6 {[%clk 0:00:37]} 25.
Rxe6 {[%clk 0:00:33.6]} 25... Rd6 {[%clk 0:00:37.5]} 26. Rxd6 {[%clk 0:00:19.1]}
26... cxd6 {[%clk 0:00:38.4]} 27. Re3 {[%clk 0:00:17.5]} 27... Kd7 {[%clk
0:00:36.4]} 28. Ne4 {[%clk 0:00:14.3]} 28... Nd5 {[%clk 0:00:26.5]} 29. Rd3
{[%clk 0:00:14.2]} 29... Nf6 {[%clk 0:00:23.4]} 30. Neg5 {[%clk 0:00:11.5]}
30... Ng4 {[%clk 0:00:23.3]} 31. Bd2 {[%clk 0:00:08.4]} 31... Bf6 {[%clk
0:00:21.2]} 32. c3 {[%clk 0:00:07.7]} 32... Rb5 {[%clk 0:00:20.9]} 33. Bc1
{[%clk 0:00:07.1]} 33... Ne7 {[%clk 0:00:21.5]} 34. c4 {[%clk 0:00:03.6]} 34...
Rb8 {[%clk 0:00:19.6]} 35. c5 {[%clk 0:00:03]} 35... Nd5 {[%clk 0:00:18.9]} 36.
Ne4 {[%clk 0:00:01.7]} 36... Be7 {[%clk 0:00:14.5]} 37. cxd6 {[%clk 0:00:01.6]}
37... Bxd6 {[%clk 0:00:15.4]} 38. Neg5 {[%clk 0:00:01.9]} 38... Rxb2 {[%clk
0:00:14.2]} 39. Bxb2 {[%clk 0:00:01.8]} 39... Nf4+ {[%clk 0:00:14.8]} 40. Kf1
{[%clk 0:00:02.2]} 40... Nxd3 {[%clk 0:00:15.5]} 41. Bc3 {[%clk 0:00:02.2]}
41... Bxa3 {[%clk 0:00:15.2]} 42. Ne4 {[%clk 0:00:02.4]} 42... Be7 {[%clk
0:00:14.3]} 43. d5 {[%clk 0:00:02.2]} 43... a3 {[%clk 0:00:14.1]} 44. Nd4 {[%clk
0:00:02.7]} 44... a2 {[%clk 0:00:14]} 45. Nb5 {[%clk 0:00:02.4]} 45... a6 {[%clk
0:00:13.1]} 46. Nd4 {[%clk 0:00:02.1]} 46... Bf6 {[%clk 0:00:12.7]} 47. f3
{[%clk 0:00:02.2]} 47... Bxd4 {[%clk 0:00:12.6]} 48. Bxd4 {[%clk 0:00:02]} 48...
Ne3+ {[%clk 0:00:11.5]} 49. Ke2 {[%clk 0:00:02]} 49... Nc2 {[%clk 0:00:12.1]}
0-1

[Event "*** SCC Grand Prix: Titled Tuesday Blitz"]
[Site "Chess.com"]
[Date "2020.08.25"]
[Round "5"]
[White "PavelShkapenko"]
[Black "rasmussvane"]
[Result "0-1"]
[WhiteElo "2622"]
[BlackElo "2859"]
[TimeControl "180+1"]
[EndTime "10:58:03 PDT"]
[Termination "rasmussvane won by resignation"]

1. e4 {[%clk 0:03:00.9]} 1... c6 {[%clk 0:03:00.3]} 2. d4 {[%clk 0:03:00.1]}
2... d5 {[%clk 0:03:01.2]} 3. exd5 {[%clk 0:03:00.1]} 3... cxd5 {[%clk
0:03:02.1]} 4. Bd3 {[%clk 0:03:00.6]} 4... Nf6 {[%clk 0:03:02.7]} 5. c3 {[%clk
0:03:00.2]} 5... Nc6 {[%clk 0:03:03.6]} 6. Bf4 {[%clk 0:02:59.8]} 6... Bg4
{[%clk 0:03:04.1]} 7. Qb3 {[%clk 0:02:59.2]} 7... Qd7 {[%clk 0:03:04.7]} 8. Nd2
{[%clk 0:02:59.3]} 8... e6 {[%clk 0:03:05.2]} 9. Ngf3 {[%clk 0:02:59.2]} 9...
Bd6 {[%clk 0:03:05.8]} 10. Bxd6 {[%clk 0:02:55.8]} 10... Qxd6 {[%clk 0:03:06.7]}
11. O-O {[%clk 0:02:56]} 11... O-O {[%clk 0:03:07.2]} 12. Rae1 {[%clk
0:02:55.5]} 12... Qc7 {[%clk 0:03:03.8]} 13. Ne5 {[%clk 0:02:55.4]} 13... Bf5
{[%clk 0:03:00.8]} 14. Bxf5 {[%clk 0:02:54.5]} 14... exf5 {[%clk 0:03:01.7]} 15.
Ndf3 {[%clk 0:02:50.2]} 15... Rad8 {[%clk 0:02:56.8]} 16. Nxc6 {[%clk
0:02:47.6]} 16... bxc6 {[%clk 0:02:55.9]} 17. Ne5 {[%clk 0:02:43.5]} 17... Ne4
{[%clk 0:02:55.3]} 18. Qc2 {[%clk 0:02:42.7]} 18... Rfe8 {[%clk 0:02:49.3]} 19.
f3 {[%clk 0:02:40.6]} 19... Nd6 {[%clk 0:02:49.1]} 20. Nd3 {[%clk 0:02:33.9]}
20... h6 {[%clk 0:02:32.5]} 21. Qc1 {[%clk 0:02:31.1]} 21... g5 {[%clk
0:02:23.6]} 22. Rxe8+ {[%clk 0:02:30.3]} 22... Rxe8 {[%clk 0:02:23.5]} 23. Re1
{[%clk 0:02:30.8]} 23... Rb8 {[%clk 0:01:56.1]} 24. Qe3 {[%clk 0:02:20.9]} 24...
Nc4 {[%clk 0:01:49.9]} 25. Qe7 {[%clk 0:02:14]} 25... Qxe7 {[%clk 0:01:41.1]}
26. Rxe7 {[%clk 0:02:13.7]} 26... Nxb2 {[%clk 0:01:40.7]} 27. Ne5 {[%clk
0:02:08.3]} 27... Nd1 {[%clk 0:01:22.5]} 28. h4 {[%clk 0:01:37.3]} 28... f6
{[%clk 0:01:10.3]} 29. Nxc6 {[%clk 0:01:35.3]} 29... Rb1 {[%clk 0:01:09.9]} 30.
Rxa7 {[%clk 0:01:27.4]} 30... Ne3+ {[%clk 0:01:03.6]} 31. Kf2 {[%clk 0:01:25.8]}
31... f4 {[%clk 0:01:03.4]} 32. Ne7+ {[%clk 0:01:25.1]} 32... Kf8 {[%clk
0:01:01.9]} 33. hxg5 {[%clk 0:00:55.9]} 33... hxg5 {[%clk 0:00:59.2]} 34. Rd7
{[%clk 0:00:43.7]} 34... Ke8 {[%clk 0:00:55.9]} 35. Ra7 {[%clk 0:00:40.1]} 35...
Rb2+ {[%clk 0:00:56]} 36. Ke1 {[%clk 0:00:37.6]} 36... Nxg2+ {[%clk 0:00:55.2]}
37. Kd1 {[%clk 0:00:37.8]} 37... Ne3+ {[%clk 0:00:56.1]} 38. Kc1 {[%clk
0:00:38]} 38... Rc2+ {[%clk 0:00:54.7]} 39. Kb1 {[%clk 0:00:38.5]} 39... Rxc3
{[%clk 0:00:52.4]} 40. Ng8 {[%clk 0:00:36.8]} 40... Rc6 {[%clk 0:00:51.1]} 41.
a4 {[%clk 0:00:36.4]} 41... g4 {[%clk 0:00:49.4]} 42. fxg4 {[%clk 0:00:28.9]}
42... Nxg4 {[%clk 0:00:36.8]} 43. Rg7 {[%clk 0:00:26.8]} 43... f5 {[%clk
0:00:33.8]} 44. Rh7 {[%clk 0:00:17.7]} 44... f3 {[%clk 0:00:32.6]} 45. Rh1
{[%clk 0:00:18.3]} 45... f2 {[%clk 0:00:31.6]} 46. Rf1 {[%clk 0:00:18.5]} 46...
Re6 {[%clk 0:00:31.7]} 47. Kc2 {[%clk 0:00:16.4]} 47... Re1 {[%clk 0:00:31.7]}
48. Nf6+ {[%clk 0:00:16.6]} 48... Kf7 {[%clk 0:00:26.9]} 49. Rxf2 {[%clk
0:00:15.5]} 49... Nxf2 {[%clk 0:00:26]} 50. Nxd5 {[%clk 0:00:16.2]} 50... Ke6
{[%clk 0:00:21]} 51. Nf4+ {[%clk 0:00:14.9]} 51... Kd6 {[%clk 0:00:21.1]} 52. a5
{[%clk 0:00:15.1]} 52... Ra1 {[%clk 0:00:20.7]} 53. Kd2 {[%clk 0:00:15.7]} 53...
Rxa5 {[%clk 0:00:20.5]} 54. Ke2 {[%clk 0:00:16.2]} 54... Ne4 {[%clk 0:00:20.5]}
55. Kd3 {[%clk 0:00:16.4]} 55... Ra3+ {[%clk 0:00:20.4]} 56. Kc4 {[%clk
0:00:16.4]} 56... Rc3+ {[%clk 0:00:20.7]} 57. Kb4 {[%clk 0:00:15.1]} 57... Rf3
{[%clk 0:00:21.6]} 58. Ne2 {[%clk 0:00:12.6]} 58... Kd5 {[%clk 0:00:21.2]} 0-1

[Event "*** SCC Grand Prix: Titled Tuesday Blitz"]
[Site "Chess.com"]
[Date "2020.08.25"]
[Round "5"]
[White "labdalla"]
[Black "ChessSwole"]
[Result "1/2-1/2"]
[WhiteElo "2241"]
[BlackElo "2435"]
[TimeControl "180+1"]
[EndTime "10:58:03 PDT"]
[Termination "Game drawn by repetition"]

1. d4 {[%clk 0:03:00.9]} 1... Nf6 {[%clk 0:02:59.8]} 2. c4 {[%clk 0:03:00.7]}
2... e6 {[%clk 0:03:00.1]} 3. Nc3 {[%clk 0:03:00.8]} 3... Bb4 {[%clk 0:03:00.7]}
4. Qc2 {[%clk 0:03:00]} 4... O-O {[%clk 0:03:00.9]} 5. a3 {[%clk 0:02:58.3]}
5... Bxc3+ {[%clk 0:03:00.6]} 6. Qxc3 {[%clk 0:02:59.2]} 6... Qe8 {[%clk
0:03:01.2]} 7. Nf3 {[%clk 0:02:54.9]} 7... b6 {[%clk 0:03:01.1]} 8. g3 {[%clk
0:02:48.8]} 8... Bb7 {[%clk 0:02:59.9]} 9. Bg2 {[%clk 0:02:49.3]} 9... d6 {[%clk
0:02:57.4]} 10. O-O {[%clk 0:02:49.3]} 10... Nbd7 {[%clk 0:02:57.6]} 11. b4
{[%clk 0:02:45.1]} 11... Qe7 {[%clk 0:02:54.4]} 12. Bb2 {[%clk 0:02:44.4]} 12...
Ne4 {[%clk 0:02:49.9]} 13. Qc2 {[%clk 0:02:40.9]} 13... f5 {[%clk 0:02:50.2]}
14. Rad1 {[%clk 0:02:37.6]} 14... Ndf6 {[%clk 0:02:49.5]} 15. d5 {[%clk
0:02:15.6]} 15... e5 {[%clk 0:02:42.1]} 16. Nd2 {[%clk 0:02:08.4]} 16... Nxd2
{[%clk 0:02:39.9]} 17. Rxd2 {[%clk 0:02:08.3]} 17... a5 {[%clk 0:02:37.2]} 18.
Qxf5 {[%clk 0:02:04.9]} 18... axb4 {[%clk 0:02:29.9]} 19. axb4 {[%clk
0:02:05.8]} 19... Ra4 {[%clk 0:02:22]} 20. Bc3 {[%clk 0:02:00.7]} 20... Rfa8
{[%clk 0:02:10.8]} 21. Rc1 {[%clk 0:01:32.4]} 21... Bc8 {[%clk 0:02:08.3]} 22.
Qc2 {[%clk 0:01:30.9]} 22... Bg4 {[%clk 0:01:39.6]} 23. h3 {[%clk 0:01:27.7]}
23... Bh5 {[%clk 0:01:38.9]} 24. e4 {[%clk 0:01:10.4]} 24... Bg6 {[%clk
0:01:34.1]} 25. Kh2 {[%clk 0:01:07.6]} 25... h6 {[%clk 0:01:33.3]} 26. Re2
{[%clk 0:01:04.3]} 26... Kh8 {[%clk 0:01:32.5]} 27. f4 {[%clk 0:00:58.9]} 27...
Ra2 {[%clk 0:01:31.9]} 28. Qxa2 {[%clk 0:00:56.4]} 28... Rxa2 {[%clk 0:01:32.8]}
29. Rxa2 {[%clk 0:00:55.8]} 29... Bxe4 {[%clk 0:01:33.5]} 30. Re1 {[%clk
0:00:50]} 30... Bxg2 {[%clk 0:01:04.6]} 31. Kxg2 {[%clk 0:00:50.9]} 31... e4
{[%clk 0:01:00.3]} 32. Rae2 {[%clk 0:00:37.9]} 32... Kh7 {[%clk 0:01:00.6]} 33.
Bxf6 {[%clk 0:00:34.8]} 33... Qxf6 {[%clk 0:01:01.5]} 34. Rxe4 {[%clk
0:00:34.4]} 34... Qc3 {[%clk 0:01:02]} 35. b5 {[%clk 0:00:33.4]} 35... Qc2+
{[%clk 0:01:02.5]} 36. R1e2 {[%clk 0:00:33.1]} 36... Qd3 {[%clk 0:01:03.4]} 37.
h4 {[%clk 0:00:28.4]} 37... h5 {[%clk 0:01:03.5]} 38. Kh3 {[%clk 0:00:22.6]}
38... Qd1 {[%clk 0:01:03]} 39. Kh2 {[%clk 0:00:21.9]} 39... Qd3 {[%clk
0:01:02.8]} 40. R2e3 {[%clk 0:00:19.9]} 40... Qc2+ {[%clk 0:01:02.3]} 41. Re2
{[%clk 0:00:20.8]} 41... Qb3 {[%clk 0:01:02.5]} 42. R2e3 {[%clk 0:00:19.7]}
42... Qb1 {[%clk 0:01:01.8]} 43. Re2 {[%clk 0:00:20.6]} 43... Kh6 {[%clk
0:00:59.5]} 44. Re6+ {[%clk 0:00:19.6]} 44... Kh7 {[%clk 0:00:59.7]} 45. R6e4
{[%clk 0:00:19.7]} 45... Qa1 {[%clk 0:00:58.6]} 46. f5 {[%clk 0:00:18.1]} 46...
Qc3 {[%clk 0:00:55]} 47. Rf2 {[%clk 0:00:13.9]} 47... Kg8 {[%clk 0:00:50.6]} 48.
Rfe2 {[%clk 0:00:10.6]} 48... Qd3 {[%clk 0:00:43.7]} 49. Re8+ {[%clk 0:00:10.6]}
49... Kh7 {[%clk 0:00:34.5]} 50. R8e4 {[%clk 0:00:11.5]} 50... Qf3 {[%clk
0:00:31.9]} 51. Re7 {[%clk 0:00:04.9]} 51... Qxf5 {[%clk 0:00:27.3]} 52. Rxc7
{[%clk 0:00:04.4]} 52... Qd3 {[%clk 0:00:28.2]} 53. Ree7 {[%clk 0:00:03.9]}
53... Qc2+ {[%clk 0:00:23.6]} 54. Kh1 {[%clk 0:00:03.6]} 54... Qd1+ {[%clk
0:00:20.8]} 55. Kh2 {[%clk 0:00:04.1]} 55... Qc2+ {[%clk 0:00:21.3]} 56. Kh1
{[%clk 0:00:04]} 56... Qb1+ {[%clk 0:00:20]} 57. Kh2 {[%clk 0:00:04.6]} 57...
Qc2+ {[%clk 0:00:18.9]} 1/2-1/2